bitfinex/quotes_BTCUSD_20250406
["timestamp","ask_amount","ask_price","bid_price","bid_amount"]
[1743966693146,9.067e-05,79124.0,79123.0,0.81018829]
[1743966694045,0.02,79162.0,79133.0,0.28381047]
[1743966694248,0.02,79162.0,79133.0,1.0315984]
[1743966694454,0.02,79162.0,79161.0,0.28371647]
[1743966694627,0.28,79162.0,79161.0,1.74725944]
[1743966694836,0.28013646,79162.0,79161.0,1.76180029]
[1743966695249,0.28013646,79162.0,79161.0,1.77430057]
[1743966695449,0.02013646,79162.0,79161.0,1.77430057]
[1743966695651,8.6e-07,79166.0,79165.0,0.03106647]
[1743966695847,8.6e-07,79166.0,79165.0,0.16851029]
[1743966696116,8.6e-07,79166.0,79165.0,0.1710361]
[1743966696296,0.10860834,79171.0,79165.0,0.1710361]
[1743966696297,2e-07,79171.0,79170.0,0.62368647]
[1743966696445,2e-07,79179.0,79178.0,0.28365947]
[1743966696660,2e-07,79179.0,79178.0,0.76110329]
[1743966696878,2e-07,79179.0,79178.0,0.74266782]
[1743966697087,2e-07,79179.0,79178.0,0.76110329]
[1743966697324,2e-07,79179.0,79178.0,0.76091349]
[1743966697534,0.0001673,79213.0,79199.0,0.28358947]
[1743966697696,0.26013646,79200.0,79199.0,1.78061683]
[1743966698044,0.26013646,79200.0,79199.0,1.52808883]
[1743966698324,0.26013646,79200.0,79199.0,1.54262968]
[1743966699304,0.26013646,79200.0,79199.0,1.54462968]
[1743966699625,0.26113646,79200.0,79199.0,1.53408883]
[1743966700025,0.26013646,79200.0,79199.0,1.54462968]
[1743966700492,0.26013646,79200.0,79199.0,1.53008883]
[1743966700691,0.26013646,79200.0,79199.0,1.5223567]
[1743966700946,0.26013646,79200.0,79199.0,1.39945373]
[1743966701192,0.25990749,79200.0,79199.0,1.37412439]
[1743966701387,0.25990749,79200.0,79199.0,1.39255986]
[1743966701528,0.26190749,79200.0,79199.0,1.39955986]
[1743966701744,0.26090749,79200.0,79199.0,1.53208883]
[1743966701984,0.25990749,79200.0,79199.0,1.40518586]
[1743966702197,0.26090749,79200.0,79199.0,1.15946586]
[1743966702414,0.26090749,79200.0,79199.0,1.40902586]
[1743966702859,0.26090749,79200.0,79199.0,1.40802586]
[1743966703054,0.26190749,79200.0,79199.0,1.53192883]
[1743966703272,0.26190749,79200.0,79199.0,1.28336883]
[1743966703476,0.26190749,79200.0,79199.0,1.37796439]
[1743966704082,0.26190749,79200.0,79199.0,1.39639986]
[1743966704465,0.26190749,79200.0,79199.0,1.37796439]
[1743966704879,0.26190749,79200.0,79199.0,1.40902586]
[1743966705151,0.26290749,79200.0,79199.0,1.38096439]
[1743966705380,0.26290749,79200.0,79199.0,0.04096439]
[1743966705508,1.00581046,79200.0,79199.0,0.01950028]
[1743966705720,0.74726485,79200.0,79199.0,0.01950028]
[1743966705923,0.73463885,79200.0,79199.0,0.01950028]
[1743966706129,0.61173588,79200.0,79199.0,0.01950028]
[1743966706399,0.26873588,79200.0,79199.0,0.29608975]
[1743966707669,0.26873588,79200.0,79199.0,0.29618975]
[1743966707890,0.26873588,79200.0,79199.0,0.30018975]
[1743966708363,0.26833588,79200.0,79199.0,0.42609272]
[1743966708608,0.26833588,79200.0,79199.0,0.42309272]
[1743966708861,0.26833588,79200.0,79199.0,0.30218975]
[1743966709079,0.26833588,79200.0,79199.0,0.01460028]
[1743966709308,0.26833588,79200.0,79199.0,0.04566175]
[1743966709533,0.26833588,79200.0,79199.0,0.04766175]
[1743966709767,0.26833588,79200.0,79199.0,0.16656472]
[1743966710015,0.26833588,79200.0,79199.0,0.41909272]
[1743966710264,0.26833588,79200.0,79199.0,0.43663357]
[1743966710500,0.0001672,79205.0,79199.0,0.43663357]
[1743966710501,2e-07,79205.0,79204.0,0.63811332]
[1743966710742,0.0004549,79205.0,79204.0,1.00823529]
[1743966711484,3e-07,79213.0,79212.0,0.64736447]
[1743966711727,3e-07,79213.0,79212.0,1.90961268]
[1743966711963,3e-07,79213.0,79212.0,1.88461268]
[1743966712208,3e-07,79213.0,79212.0,1.90961268]
[1743966712484,3e-07,79213.0,79212.0,1.85281736]
[1743966712725,3e-07,79213.0,79212.0,1.52594583]
[1743966712945,0.0010003,79213.0,79212.0,1.78353183]
[1743966713194,0.25240977,79235.0,79234.0,0.01660772]
[1743966713435,0.012621,79233.0,79232.0,0.01660772]
[1743966713674,0.252429,79230.0,79228.0,0.02146411]
[1743966714011,0.51505,79230.0,79228.0,0.03396439]
[1743966714285,0.012621,79229.0,79228.0,0.03396439]
[1743966714561,0.28,79229.0,79228.0,0.05057211]
[1743966715328,0.252465,79219.0,79212.0,1.3393]
[1743966715576,0.012621,79233.0,79213.0,0.12290297]
[1743966715818,0.252443,79226.0,79213.0,0.24828]
[1743966716056,0.005,79229.0,79228.0,0.002]
[1743966716298,0.2,79229.0,79228.0,0.001]
[1743966716786,0.46,79229.0,79228.0,0.001]
[1743966717027,0.2,79229.0,79228.0,0.001]
[1743966717265,0.2,79229.0,79212.0,1.02697749]
[1743966717266,0.012622,79226.0,79212.0,1.02697749]
[1743966717507,0.15,79226.0,79214.0,0.012624]
[1743966717745,0.15,79226.0,79216.0,0.252473]
[1743966717986,0.15,79226.0,79213.0,0.004]
[1743966718178,0.012622,79222.0,79213.0,0.005]
[1743966718465,0.25248,79214.0,79212.0,1.02697749]
[1743966718700,0.012624,79213.0,79212.0,1.02697749]
[1743966718889,0.112624,79213.0,79212.0,1.02697749]
[1743966719211,0.12014703,79213.0,79212.0,1.02697749]
[1743966719498,0.10752303,79213.0,79212.0,1.02697749]
[1743966719747,0.10752303,79213.0,79212.0,1.02707749]
[1743966720282,0.10852303,79213.0,79212.0,1.03207749]
[1743966720502,0.101,79213.0,79212.0,1.03217749]
[1743966720805,0.367107,79213.0,79212.0,1.03417749]
[1743966721053,0.37457002,79213.0,79212.0,1.03417749]
[1743966721325,0.10746302,79213.0,79212.0,1.02717749]
[1743966721759,0.10746302,79213.0,79212.0,1.02817749]
[1743966722051,0.10746302,79213.0,79212.0,1.02717749]
[1743966722365,0.10746302,79213.0,79212.0,1.02817749]
[1743966722366,0.11,79213.0,79212.0,1.02817749]
[1743966722841,0.11744807,79213.0,79212.0,1.02817749]
[1743966723180,0.11734807,79213.0,79212.0,1.02817749]
[1743966723576,0.12997207,79213.0,79212.0,1.02817749]
[1743966723776,0.59287504,79213.0,79212.0,1.02817749]
[1743966724007,0.59287504,79213.0,79212.0,0.0013]
[1743966724804,1.00847504,79213.0,79212.0,0.0013]
[1743966725009,0.605151,79200.0,79162.0,0.252643]
[1743966725207,0.252611,79173.0,79166.0,0.24812]
[1743966725530,0.252621,79170.0,79159.0,1.09056]
[1743966725789,0.09,79170.0,79162.0,0.265275]
[1743966726052,0.0068489,79169.0,79162.0,0.012632]
[1743966726304,0.0868489,79169.0,79161.0,0.012632]
[1743966726554,0.0868489,79169.0,79167.0,0.0007887]
[1743966727082,0.012631,79168.0,79167.0,0.0007887]
[1743966727339,0.76700753,79168.0,79167.0,0.0007887]
[1743966727570,0.76097721,79168.0,79167.0,0.0008887]
[1743966728041,0.63807424,79168.0,79167.0,0.0008887]
[1743966728278,0.77360821,79168.0,79167.0,0.0028887]
[1743966728560,1.01476165,79168.0,79167.0,0.0028887]
[1743966728806,0.252687,79150.0,79135.0,0.24808]
[1743966729081,0.52822397,79150.0,79140.0,0.00013646]
[1743966729356,0.012635,79141.0,79140.0,0.00013646]
[1743966729593,0.14,79141.0,79140.0,0.00013646]
[1743966729851,0.14646418,79141.0,79140.0,0.00013646]
[1743966730311,0.14646418,79141.0,79140.0,0.26548746]
[1743966730713,0.14,79141.0,79140.0,0.26548746]
[1743966731065,0.14642644,79141.0,79140.0,0.26548746]
[1743966731270,0.14642644,79141.0,79140.0,0.38849043]
[1743966731511,0.14642644,79141.0,79140.0,0.39049043]
[1743966732011,0.14642644,79141.0,79140.0,0.40313128]
[1743966732226,0.00642644,79141.0,79140.0,0.45443128]
[1743966732465,0.00742644,79141.0,79140.0,0.45443128]
[1743966732714,0.012626,79200.0,79180.0,0.012629]
[1743966732991,0.0457,79202.0,79180.0,0.012629]
[1743966732992,0.17894713,79181.0,79180.0,0.012629]
[1743966733230,0.18446913,79181.0,79180.0,0.13553197]
[1743966733688,0.17894713,79181.0,79180.0,0.15259848]
[1743966733969,0.17894713,79181.0,79180.0,0.12290297]
[1743966734192,0.17894713,79181.0,79180.0,0.01276546]
[1743966734419,0.07554711,79181.0,79180.0,0.24821646]
[1743966734664,0.071,79181.0,79180.0,0.25021646]
[1743966735153,0.07,79181.0,79180.0,0.24821646]
[1743966735383,0.071,79181.0,79180.0,0.25331646]
[1743966735595,0.07750222,79181.0,79180.0,0.25531646]
[1743966735836,0.07750222,79181.0,79180.0,0.52053446]
[1743966736055,0.005,79178.0,79173.0,0.500648]
[1743966736331,0.055,79178.0,79177.0,0.252598]
[1743966736545,0.055,79178.0,79177.0,0.265227]
[1743966737327,0.005,79202.0,79201.0,0.265148]
[1743966737582,0.005,79209.0,79208.0,0.012624]
[1743966737830,0.03,79202.0,79196.0,0.252535]
[1743966738061,0.03,79202.0,79063.0,0.5]
[1743966738062,0.005,79192.0,79191.0,0.26518]
[1743966738263,0.025,79201.0,79200.0,0.012626]
[1743966738468,0.02545478,79209.0,79208.0,0.265123]
[1743966738641,0.06045478,79209.0,79208.0,0.265123]
[1743966739008,0.06545478,79209.0,79208.0,0.265123]
[1743966739893,0.06545478,79209.0,79208.0,0.265223]
[1743966740364,0.06545478,79209.0,79208.0,0.0001]
[1743966740604,0.07107002,79209.0,79208.0,0.0001]
[1743966741544,0.07107002,79209.0,79208.0,0.0011]
[1743966741545,0.07607002,79209.0,79208.0,0.0011]
[1743966741728,0.07607002,79209.0,79208.0,0.013724]
[1743966742112,0.07045478,79209.0,79208.0,0.0011]
[1743966742894,0.55163135,79209.0,79208.0,0.0011]
[1743966743197,0.54673211,79209.0,79208.0,0.0011]
[1743966743408,1.07247296,79209.0,79208.0,0.0011]
[1743966744026,1.09033228,79209.0,79208.0,0.0011]
[1743966744180,1.08496504,79209.0,79208.0,0.0001]
[1743966744379,1.00323421,79209.0,79208.0,0.0001]
[1743966744597,1.02085821,79209.0,79208.0,0.0011]
[1743966744831,1.00343211,79209.0,79208.0,0.0001]
[1743966745042,1.00943211,79209.0,79208.0,0.0001]
[1743966745235,1.01443211,79209.0,79208.0,0.0001]
[1743966745433,1.03334541,79209.0,79208.0,0.0001]
[1743966745637,1.00780456,79209.0,79208.0,0.0001]
[1743966745848,1.01780456,79209.0,79208.0,0.0001]
[1743966746047,1.02234541,79209.0,79208.0,0.0001]
[1743966746253,0.005,79173.0,79172.0,0.252614]
[1743966746425,0.035,79173.0,79172.0,0.252614]
[1743966746627,0.03,79173.0,79172.0,0.265244]
[1743966746827,0.03,79173.0,79172.0,0.38814697]
[1743966747041,0.34,79207.0,79192.0,0.265175]
[1743966747245,0.02055554,79198.0,79195.0,0.012627]
[1743966747468,0.005,79201.0,79200.0,0.012626]
[1743966747737,0.02555554,79189.0,79185.0,0.012628]
[1743966747907,0.02555554,79189.0,79187.0,0.265193]
[1743966747908,0.03555554,79189.0,79187.0,0.265193]
[1743966748114,0.01,79189.0,79188.0,0.012628]
[1743966748509,0.03055554,79189.0,79188.0,0.012628]
[1743966748922,0.01,79189.0,79188.0,0.13553097]
[1743966749130,0.01,79201.0,79200.0,0.012626]
[1743966749340,0.03,79201.0,79200.0,0.13805401]
[1743966749546,0.03,79201.0,79200.0,0.37066297]
[1743966749667,0.035,79201.0,79200.0,0.24776]
[1743966749875,0.03,79201.0,79200.0,0.24776]
[1743966750085,0.03,79201.0,79188.0,0.001]
[1743966750086,0.005,79189.0,79188.0,0.001]
[1743966750287,0.02,79189.0,79188.0,0.51395]
[1743966750489,0.02,79189.0,79182.0,0.252582]
[1743966750829,0.02,79189.0,79183.0,0.12290297]
[1743966751032,0.005,79179.0,79178.0,1.09088]
[1743966751207,0.025,79179.0,79178.0,1.09088]
[1743966751408,0.04555554,79179.0,79178.0,1.09088]
[1743966751812,0.04555554,79179.0,79156.0,0.265298]
[1743966751813,0.005,79165.0,79156.0,0.265298]
[1743966752069,0.005,79162.0,79157.0,0.012633]
[1743966752267,0.035,79162.0,79157.0,0.012633]
[1743966752642,0.035,79162.0,79157.0,0.00045478]
[1743966752643,0.005,79160.0,79157.0,0.00045478]
[1743966752853,0.02555554,79158.0,79157.0,0.00045478]
[1743966753027,0.11555554,79158.0,79157.0,0.00045478]
[1743966753591,0.11555554,79158.0,79157.0,0.01308778]
[1743966753789,0.11555554,79158.0,79157.0,0.00045478]
[1743966754187,0.11155554,79158.0,79157.0,0.26974978]
[1743966754445,0.091,79158.0,79157.0,0.39265275]
[1743966754876,0.092,79158.0,79157.0,0.39265275]
[1743966755199,0.11255554,79158.0,79157.0,0.39265275]
[1743966755559,0.092,79158.0,79157.0,0.39275275]
[1743966756143,0.11255554,79158.0,79157.0,0.00455478]
[1743966756314,0.11755554,79158.0,79157.0,0.00455478]
[1743966757135,0.11655554,79158.0,79157.0,0.00455478]
[1743966757366,0.11655554,79158.0,79157.0,0.00055478]
[1743966757564,0.11755554,79158.0,79157.0,0.00455478]
[1743966757960,0.11555554,79158.0,79157.0,0.00055478]
[1743966758339,0.11555554,79158.0,79157.0,0.00455478]
[1743966758340,0.11755554,79158.0,79157.0,0.00455478]
[1743966758513,0.092,79158.0,79157.0,0.01718778]
[1743966758714,0.11655554,79158.0,79157.0,0.00455478]
[1743966758917,0.091,79158.0,79157.0,0.01318778]
[1743966759050,0.095,79158.0,79157.0,0.01318778]
[1743966759490,0.095,79158.0,79157.0,0.00055478]
[1743966759905,0.11555554,79158.0,79157.0,0.00055478]
[1743966760108,0.11555554,79158.0,79157.0,0.00655478]
[1743966760383,0.09,79158.0,79157.0,0.02518778]
[1743966760575,0.11055554,79158.0,79157.0,0.01255478]
[1743966760710,0.095,79158.0,79157.0,0.01255478]
[1743966760911,0.11555554,79158.0,79157.0,0.02518778]
[1743966761115,0.11555554,79158.0,79157.0,0.01255478]
[1743966761316,0.095,79158.0,79157.0,0.01255478]
[1743966761517,0.11555554,79158.0,79157.0,0.01255478]
[1743966762060,0.11555554,79158.0,79157.0,0.00055478]
[1743966762644,0.12818754,79158.0,79157.0,0.00055478]
[1743966762845,1.07256626,79158.0,79157.0,0.00055478]
[1743966763052,0.28587054,79151.0,79150.0,10.0]
[1743966763246,0.28587054,79151.0,79150.0,10.00013646]
[1743966763247,1.42391436,79151.0,79150.0,10.00013646]
[1743966763705,1.44684388,79151.0,79150.0,10.00013646]
[1743966763908,1.45933209,79151.0,79150.0,10.00013646]
[1743966764112,1.60369727,79151.0,79150.0,9.1434535]
[1743966764429,1.75659495,79151.0,79150.0,1.46396697]
[1743966764556,1.63369727,79151.0,79150.0,0.87304071]
[1743966764757,1.63969727,79151.0,79150.0,0.82881983]
[1743966764988,1.61969727,79151.0,79150.0,0.82250257]
[1743966765196,1.59414173,79151.0,79150.0,0.82250257]
[1743966765394,1.48779727,79151.0,79150.0,0.82250257]
[1743966765589,1.19545321,79151.0,79150.0,0.82250257]
[1743966765936,1.02906518,79151.0,79150.0,0.82250257]
[1743966766077,0.70962072,79151.0,79150.0,0.82250257]
[1743966766427,0.70462072,79151.0,79150.0,0.82250257]
[1743966766565,1.42520469,79151.0,79150.0,0.82260257]
[1743966766780,0.83252369,79151.0,79150.0,0.82260257]
[1743966767179,1.40873951,79151.0,79150.0,0.82260257]
[1743966767414,1.14405851,79151.0,79150.0,0.82260257]
[1743966767814,1.15005851,79151.0,79150.0,0.82260257]
[1743966768016,1.15505851,79151.0,79150.0,0.82260257]
[1743966768252,0.62255554,79151.0,79150.0,0.82260257]
[1743966768657,0.61055554,79151.0,79150.0,0.82260257]
[1743966769118,0.61655554,79151.0,79150.0,0.82260257]
[1743966769247,0.99977351,79151.0,79150.0,0.82260257]
[1743966769447,0.99377351,79151.0,79150.0,0.82260257]
[1743966769629,1.01022438,79151.0,79150.0,0.82360257]
[1743966770291,1.00522438,79151.0,79150.0,0.82260257]
[1743966770505,1.01022438,79151.0,79150.0,0.82360257]
[1743966770793,1.01622438,79151.0,79150.0,0.82360257]
[1743966771005,1.00522438,79151.0,79150.0,0.82260257]
[1743966771215,0.62200641,79151.0,79150.0,0.82360257]
[1743966771417,0.64064041,79151.0,79150.0,0.82360257]
[1743966771620,0.99877351,79151.0,79150.0,0.82360257]
[1743966771963,1.00477351,79151.0,79150.0,0.82360257]
[1743966772165,1.41437351,79151.0,79150.0,0.82360257]
[1743966773079,1.40937351,79151.0,79150.0,0.82260257]
[1743966773478,1.41437351,79151.0,79150.0,0.82260257]
[1743966773680,1.42037351,79151.0,79150.0,0.82260257]
[1743966774106,1.43827811,79151.0,79150.0,0.82260257]
[1743966774369,1.45345896,79151.0,79150.0,0.82260257]
[1743966774533,1.45845896,79151.0,79150.0,0.82260257]
[1743966774747,1.45345896,79151.0,79150.0,0.82260257]
[1743966774948,1.59781301,79151.0,79150.0,0.40700257]
[1743966775163,1.62781301,79151.0,79150.0,0.35646308]
[1743966775305,0.66087654,79149.0,79148.0,8e-08]
[1743966775511,1.21122036,79149.0,79148.0,8e-08]
[1743966775915,0.005,79108.0,79107.0,0.03473868]
[1743966776124,0.47555554,79108.0,79107.0,0.00045523]
[1743966776336,1.02669851,79108.0,79107.0,0.00045523]
[1743966776750,1.04959354,79108.0,79107.0,0.00045523]
[1743966776960,1.03695354,79108.0,79107.0,0.00045523]
[1743966777371,1.02669851,79108.0,79107.0,0.00145523]
[1743966777571,1.03815256,79108.0,79107.0,0.00145523]
[1743966777814,1.06201509,79108.0,79107.0,0.00145523]
[1743966778036,1.06201509,79108.0,79107.0,0.00045523]
[1743966778257,1.05247424,79108.0,79107.0,0.00045523]
[1743966778576,0.61821737,79108.0,79107.0,0.00045523]
[1743966778776,0.63777291,79108.0,79107.0,0.00045523]
[1743966779276,0.64277291,79108.0,79107.0,0.00045523]
[1743966779407,0.63777291,79108.0,79107.0,0.00045523]
[1743966779606,0.64277291,79108.0,79107.0,0.00045523]
[1743966779812,0.61991256,79108.0,79107.0,0.00045523]
[1743966780017,0.13145405,79108.0,79107.0,0.00045523]
[1743966780213,0.13145405,79108.0,79107.0,0.06039623]
[1743966780214,0.12645405,79108.0,79107.0,0.06039623]
[1743966780613,0.13145405,79108.0,79107.0,0.30775623]
[1743966780931,0.005,79119.0,79117.0,0.265429]
[1743966781140,0.03,79119.0,79118.0,0.01516668]
[1743966781340,0.03,79119.0,79118.0,0.13554197]
[1743966782217,0.4156,79145.0,79118.0,0.13554197]
[1743966782218,0.01263,79172.0,79151.0,0.252681]
[1743966782417,0.01263,79172.0,79150.0,0.012634]
[1743966782418,0.005,79153.0,79150.0,0.012634]
[1743966782621,0.02055554,79147.0,79146.0,0.012634]
[1743966782821,0.005,79151.0,79148.0,0.252691]
[1743966783152,0.005,79158.0,79157.0,0.265295]
[1743966783334,0.005,79167.0,79166.0,0.265264]
[1743966783554,0.12950267,79174.0,79170.0,0.012631]
[1743966783760,0.005,79159.0,79151.0,0.24732]
[1743966783966,0.02555554,79152.0,79151.0,0.24732]
[1743966784165,0.02555554,79152.0,79147.0,0.049]
[1743966784166,0.02555554,79148.0,79147.0,0.049]
[1743966784374,0.05055554,79148.0,79147.0,0.049]
[1743966784588,0.05555554,79148.0,79147.0,0.049]
[1743966785756,0.02555554,79137.0,79136.0,1.0918]
[1743966786003,0.02055554,79129.0,79128.0,0.049]
[1743966786216,0.03,79129.0,79128.0,0.061637]
[1743966786360,0.03,79129.0,79128.0,0.18706729]
[1743966786564,0.005,79145.0,79144.0,0.265338]
[1743966786896,0.02055554,79144.0,79139.0,0.012635]
[1743966787104,0.002,79148.0,79147.0,0.012634]
[1743966787263,0.022,79148.0,79147.0,0.26785473]
[1743966787464,0.021,79148.0,79147.0,0.38823097]
[1743966787665,0.0001672,79151.0,79150.0,0.27985885]
[1743966787918,0.0001672,79151.0,79150.0,0.40276182]
[1743966788327,0.0001671,79183.0,79150.0,0.40276182]
[1743966788328,0.02555554,79178.0,79177.0,0.265227]
[1743966788532,0.02555554,79174.0,79169.0,0.2472]
[1743966788744,0.05,79174.0,79172.0,0.252613]
[1743966788909,0.07055554,79174.0,79173.0,0.01263]
[1743966789262,0.05,79174.0,79173.0,0.38814397]
[1743966789429,0.00013631,79178.0,79177.0,0.265227]
[1743966789619,0.00013631,79178.0,79177.0,0.43792997]
[1743966791224,0.00113631,79178.0,79177.0,0.44292997]
[1743966791428,0.00113631,79178.0,79177.0,0.45757082]
[1743966791611,0.0001671,79183.0,79182.0,0.27975185]
[1743966791806,0.0001671,79183.0,79182.0,0.40265482]
[1743966792014,0.0001671,79183.0,79182.0,0.38811397]
[1743966792639,0.0001671,79183.0,79182.0,0.12290297]
[1743966792810,0.0201671,79183.0,79182.0,0.006]
[1743966793011,0.0322436,79183.0,79182.0,0.24704]
[1743966793221,0.0322436,79183.0,79178.0,0.252593]
[1743966793422,0.0251671,79183.0,79182.0,0.006]
[1743966793645,0.04572264,79183.0,79182.0,0.006]
[1743966794008,0.04572264,79183.0,79182.0,0.012]
[1743966794668,0.0201671,79183.0,79182.0,0.13553197]
[1743966795056,0.0201671,79183.0,79178.0,0.265224]
[1743966795254,0.005,79178.0,79177.0,0.0001]
[1743966795478,0.04055554,79178.0,79177.0,0.0001]
[1743966795705,0.02,79178.0,79177.0,0.13815787]
[1743966795866,0.0001671,79183.0,79182.0,0.271211]
[1743966796077,0.0001671,79183.0,79182.0,0.45665482]
[1743966796492,0.0001671,79183.0,79182.0,0.45065482]
[1743966796843,0.0001671,79183.0,79182.0,0.43611397]
[1743966797409,0.0101671,79183.0,79182.0,0.006]
[1743966797603,0.0101671,79183.0,79182.0,0.25288]
[1743966797810,0.03572264,79183.0,79182.0,0.25288]
[1743966798452,0.30092964,79183.0,79182.0,0.006]
[1743966798649,0.76383261,79183.0,79182.0,0.006]
[1743966799249,0.76383261,79183.0,79182.0,0.012]
[1743966799250,0.0101671,79183.0,79182.0,0.012]
[1743966799418,0.0151671,79183.0,79182.0,0.018629]
[1743966799622,0.0151671,79183.0,79182.0,0.012629]
[1743966799826,0.0211671,79183.0,79182.0,0.012629]
[1743966800033,0.0211671,79183.0,79182.0,0.018629]
[1743966800232,0.04172264,79183.0,79182.0,0.018629]
[1743966800433,0.04172264,79183.0,79182.0,0.012629]
[1743966800780,0.02555554,79178.0,79177.0,0.0001]
[1743966800976,0.03,79178.0,79177.0,0.012729]
[1743966801344,0.03,79178.0,79177.0,0.01525488]
[1743966801543,0.03,79178.0,79177.0,0.13563197]
[1743966801698,0.0101671,79183.0,79182.0,0.012629]
[1743966802052,0.0141671,79183.0,79182.0,0.63487397]
[1743966802427,0.0201671,79183.0,79182.0,0.63487397]
[1743966802638,0.0001671,79183.0,79182.0,1.03881482]
[1743966802843,0.02555554,79208.0,79207.0,0.012625]
[1743966803063,0.04,79208.0,79207.0,0.265127]
[1743966803644,0.06055554,79208.0,79207.0,0.265127]
[1743966804406,0.04,79208.0,79207.0,0.265127]
[1743966804640,0.04,79208.0,79207.0,0.38802997]
[1743966804848,0.04,79208.0,79207.0,0.65318987]
[1743966805331,0.04,79208.0,79207.0,0.65328987]
[1743966805890,0.046,79208.0,79207.0,0.65328987]
[1743966806094,0.046,79208.0,79207.0,0.64728987]
[1743966806495,0.046,79208.0,79207.0,0.65928987]
[1743966806899,0.046,79208.0,79207.0,0.65328987]
[1743966807124,0.046,79208.0,79207.0,0.65928987]
[1743966807363,0.04,79208.0,79207.0,0.65328987]
[1743966807942,0.04,79208.0,79207.0,0.2652599]
[1743966807943,0.045,79208.0,79207.0,0.2652599]
[1743966808835,0.04,79208.0,79207.0,0.5177619]
[1743966809025,0.04,79208.0,79207.0,0.5243869]
[1743966809217,0.04,79208.0,79207.0,0.65928987]
[1743966809567,0.04,79208.0,79207.0,0.2592599]
[1743966810009,0.06555554,79208.0,79207.0,0.0125799]
[1743966810355,0.06555554,79208.0,79207.0,0.0185799]
[1743966810658,0.06555554,79208.0,79207.0,0.0245799]
[1743966810872,0.06055554,79208.0,79207.0,0.0372049]
[1743966811281,0.04,79208.0,79207.0,0.0372049]
[1743966811487,0.04,79208.0,79207.0,0.16010787]
[1743966812717,0.00062227,79215.0,79214.0,0.265104]
[1743966812914,0.05062227,79215.0,79214.0,0.38800697]
[1743966813099,0.00062227,79215.0,79214.0,0.38800697]
[1743966813967,0.00062227,79215.0,79214.0,0.40000697]
[1743966814608,0.00062227,79215.0,79214.0,0.40965354]
[1743966814874,0.01062227,79215.0,79214.0,0.012]
[1743966815072,0.03617781,79215.0,79214.0,0.012]
[1743966815288,0.02555554,79208.0,79207.0,0.0125799]
[1743966815502,0.09817954,79208.0,79207.0,0.0001]
[1743966816008,0.08555554,79208.0,79207.0,0.0001]
[1743966816207,0.065,79208.0,79207.0,0.0001]
[1743966816556,0.08555554,79208.0,79207.0,0.0001]
[1743966816761,0.08555554,79208.0,79207.0,0.0061]
[1743966816963,0.06,79208.0,79207.0,0.0001]
[1743966817181,0.06,79208.0,79207.0,0.271227]
[1743966817365,0.08055554,79208.0,79207.0,0.0061]
[1743966817779,0.31,79208.0,79207.0,0.38150497]
[1743966817983,0.06,79208.0,79207.0,0.45370987]
[1743966818380,0.00062227,79215.0,79214.0,0.265104]
[1743966818579,0.01062227,79215.0,79214.0,0.38800697]
[1743966819596,0.00562227,79215.0,79214.0,0.271104]
[1743966819949,0.00562227,79215.0,79214.0,0.270824]
[1743966820545,0.00562227,79215.0,79214.0,0.2582]
[1743966820769,0.00562227,79215.0,79214.0,0.012]
[1743966820770,0.29627781,79215.0,79214.0,0.012]
[1743966820973,0.41918078,79215.0,79214.0,0.012]
[1743966821586,0.78527249,79215.0,79214.0,0.012]
[1743966821785,0.64521939,79208.0,79207.0,0.0001]
[1743966822022,1.00358151,79208.0,79207.0,0.0001]
[1743966822221,0.73845851,79208.0,79207.0,0.0001]
[1743966822432,0.27055554,79208.0,79207.0,0.0001]
[1743966822641,0.2871064,79208.0,79207.0,0.0001]
[1743966823337,0.2871064,79208.0,79207.0,0.012725]
[1743966823559,0.2881064,79208.0,79207.0,0.0001]
[1743966823894,0.27655554,79208.0,79207.0,0.0001]
[1743966824342,0.75208251,79208.0,79207.0,0.0001]
[1743966824888,0.75108251,79208.0,79207.0,0.0001]
[1743966825040,0.76562336,79208.0,79207.0,0.0001]
[1743966825245,1.28694184,79208.0,79207.0,0.0001]
[1743966825566,0.02555554,79178.0,79177.0,0.0001]
[1743966825868,0.045,79178.0,79177.0,0.012729]
[1743966826067,0.06555554,79178.0,79177.0,0.012729]
[1743966826238,0.06555554,79178.0,79177.0,0.0001]
[1743966826423,0.06555554,79178.0,79177.0,0.012729]
[1743966826784,0.06555554,79178.0,79177.0,0.13861293]
[1743966826785,0.04,79178.0,79177.0,0.13861293]
[1743966826976,0.04,79178.0,79177.0,0.13608704]
[1743966827396,0.04,79178.0,79177.0,0.15315343]
[1743966827607,0.02055554,79193.0,79191.0,0.012627]
[1743966827817,0.06055554,79193.0,79192.0,0.012627]
[1743966827956,0.06055554,79193.0,79191.0,0.012627]
[1743966828501,0.005,79188.0,79183.0,0.012628]
[1743966828689,0.005,79178.0,79177.0,0.00065507]
[1743966828896,0.026,79178.0,79177.0,0.01528407]
[1743966829072,0.021,79178.0,79177.0,0.01528407]
[1743966829275,0.02055554,79197.0,79196.0,0.012626]
[1743966829581,0.23,79197.0,79196.0,0.265164]
[1743966829915,0.06156187,79197.0,79196.0,0.511124]
[1743966830113,0.06156187,79197.0,79196.0,0.63402697]
[1743966830333,0.01156187,79197.0,79196.0,0.67972697]
[1743966830573,0.01656187,79197.0,79196.0,0.67972697]
[1743966831121,0.005,79197.0,79196.0,0.67972697]
[1743966831535,0.005,79197.0,79196.0,0.67982697]
[1743966831939,0.02055554,79206.0,79196.0,0.67982697]
[1743966831940,0.02055554,79206.0,79205.0,0.265134]
[1743966832139,0.03055554,79206.0,79205.0,0.40051687]
[1743966832585,0.03055554,79206.0,79205.0,0.2776139]
[1743966832745,0.01,79206.0,79205.0,0.14800787]
[1743966832968,0.03055554,79206.0,79205.0,0.40051687]
[1743966833118,0.03069189,79206.0,79205.0,0.252509]
[1743966833314,0.03069189,79206.0,79205.0,0.265134]
[1743966833563,0.03169189,79206.0,79205.0,0.268134]
[1743966833853,0.03669189,79206.0,79205.0,0.003]
[1743966834635,0.01113635,79206.0,79205.0,0.27065878]
[1743966834855,0.01113635,79206.0,79205.0,0.270134]
[1743966835280,0.01013635,79206.0,79205.0,0.73403697]
[1743966835476,0.00113635,79206.0,79205.0,0.73903697]
[1743966835631,0.00113635,79206.0,79205.0,0.73303697]
[1743966835839,0.00113635,79206.0,79205.0,0.73903697]
[1743966836049,0.00013635,79206.0,79205.0,0.73403697]